Cogmind - Beta 17 @@@ ROGUE MODE // 2026.07.15 @ 06:31:02 // Winter2019/RPGLIKE Player: Gallgagger Result: Self-destructed Performance ------------- Evolutions (1) 500 Regions Visited (5) 1000 Robots Destroyed (6) 30 Value Destroyed (66) 66 Prototype IDs (23) 460 Alien Tech Used (0) 0 Bonus (500) 500 TOTAL SCORE: 2556 Bonus ------- Pacifist 200 Aligned with FarCom 300 Cogmind --------- Core Integrity 172/900 Matter 300/300 Energy 70/100 System Corruption 0% Temperature Cool (12) Movement Core (50) Location -8/Mines Parts ------- > --- POWER (1) -------- (None) > --- PROPULSION (1) --- (None) > --- UTILITY (1) ------ (None) > --- WEAPON (2) ------- YOLO Cannon > --- INVENTORY (0) ---- (None) Peak State ------------ > --- POWER ------------ (None) > --- PROPULSION ------- (None) > --- UTILITY ---------- (None) > --- WEAPON ----------- YOLO Cannon > --- INVENTORY -------- (None) [Rating: 20] Favorites ----------- Power None Propulsion None Utility None Weapon YOLO Cannon Energy Cannon YOLO Cannon Build | -11 -10 -9 -9 -9 -8 ------- Run | Yrd Mat Mat Min Exi Min Slots Evolved 1 | . . . . 1 . Power . | . . . . . . Propulsion . | . . . . . . Utility . | . . . . . . Weapon 1 | . . . . 1 . Parts Attached 1 | . . . . 1 . Power . | . . . . . . Engine . | . . . . . . Core . | . . . . . . Reactor . | . . . . . . Propulsion . | . . . . . . Treads . | . . . . . . Leg . | . . . . . . Wheel . | . . . . . . Hover . | . . . . . . Flight . | . . . . . . Utility . | . . . . . . Device . | . . . . . . Storage . | . . . . . . Processor . | . . . . . . Hackware . | . . . . . . Protection . | . . . . . . Artifact . | . . . . . . Weapon 1 | . . . . 1 . Energy Gun . | . . . . . . Energy Cannon 1 | . . . . 1 . Ballistic Gun . | . . . . . . Ballistic Cannon . | . . . . . . Launcher . | . . . . . . Special Weapon . | . . . . . . Impact Weapon . | . . . . . . Slashing Weapon . | . . . . . . Piercing Weapon . | . . . . . . Special Melee Weapon . | . . . . . . Unidentified Prototypes . | . . . . . . Parts Lost . | . . . . . . Power . | . . . . . . Propulsion . | . . . . . . Utility . | . . . . . . Weapon . | . . . . . . Highest Loss Streak . | . . . . . . To Critical Strikes . | . . . . . . Average Backups . | . . . . . . Power . | . . . . . . Propulsion . | . . . . . . Utility . | . . . . . . Weapon . | . . . . . . Tool/Special . | . . . . . . Unused Backups . | . . . . . . Power . | . . . . . . Propulsion . | . . . . . . Utility . | . . . . . . Weapon . | . . . . . . Tool/Special . | . . . . . . Average Slot Usage (%) 4 | . . . . 8 20 Energy Cannon 4 | . . . . 8 20 Peak Build Rating 20 | . . . . 20 20 Average Rating 4 | . . . . 9 20 On Entrance 3 | . . . . . 20 Avg Prop Armor Cover (%) . | . . . . . . Naked Turns 700 | . 42 73 527 58 . Heaviest Build 18 | . . . . 18 18 Greatest Support 23 | 3 3 3 3 23 23 Greatest Overweight (x) . | . . . . . . Average Overweight (x) . | . . . . . . Largest Inventory Capacity . | . . . . . . Average Capacity . | . . . . . . Most Carried . | . . . . . . Average Carried . | . . . . . . Final Capacity . | . . . . . . Final Carried . | . . . . . . Class Distribution -------------------- 100% | Mutant Dominant Class ---------------- Mutant | -10/Materials Mutant | -9/Materials Mutant | -9/Mines Mutant | -9/Exiles Mutant | -8/Mines Resources | -11 -10 -9 -9 -9 -8 ----------- Run | Yrd Mat Mat Min Exi Min Matter Collected 194 | . . . 186 . 8 Remotely . | . . . . . . Salvage Created 44 | . . . . . 44 Parts 7 | . . . 2 . 5 Haulers Intercepted . | . . . . . . Recyclers Shooed . | . . . . . . Parts Field Recycled . | . . . . . . Retrieved Matter . | . . . . . . Parts Self-Destructed . | . . . . . . Prevented . | . . . . . . Parts Restored . | . . . . . . Kills | -11 -10 -9 -9 -9 -8 ------- Run | Yrd Mat Mat Min Exi Min Combat Hostiles Destroyed 5 | . . . 1 . 4 Melee 1 | . . . 1 . . Cannons 1 | . . . . . 1 AOE 3 | . . . . . 3 Classes Destroyed 3 | . . . 1 . 2 Worker 1 | . . . . . 1 Swarmer 3 | . . . . . 3 Grunt 1 | . . . 1 . . Best Kill Streak 3 | . . . 1 . 3 Combat Bots Only 3 | . . . 1 . 3 Max Kills in Single Turn 3 | . . . 1 . 3 Gunslinging . | . . . . . . Exploded 3 | . . . . . 3 Melee 1 | . . . 1 . . Uniques/NPCs Destroyed 1 | . . . . . 1 AD-0RF (-8/Mines) Combat | -11 -10 -9 -9 -9 -8 -------- Run | Yrd Mat Mat Min Exi Min Hostile Shots Fired 75 | . 4 . 2 . 69 Missed 7 | . 2 . 1 . 4 Hits 68 | . 2 . 1 . 65 Projectile 68 | . 2 . 1 . 65 Part Disruptions 5 | . . . . . 5 Damage Taken 916 | . 22 . 43 . 851 Core 793 | . 22 . 43 . 728 Absorbed by Shields . | . . . . . . Redirected to Core 414 | . . . . . 414 Core Remaining (%) 98 | 100 96 . . . . Volleys Fired 12 | . . . . 1 11 Largest 1 | . . . . 1 1 Hottest 100 | . . . . 100 100 Shots Fired 12 | . . . . 1 11 Gun . | . . . . . . Cannon 12 | . . . . 1 11 Launcher . | . . . . . . Special . | . . . . . . Kinetic . | . . . . . . Thermal 12 | . . . . 1 11 Explosive . | . . . . . . Electromagnetic . | . . . . . . Robot Hit Streak 3 | . . . . . 3 Robot Miss Streak 2 | . . . . . 2 Penetration Max . | . . . . . . Secondary Targets . | . . . . . . Shots Hit Robots 6 | . . . . . 6 Core Hits 9 | . . . 1 . 8 Critical Kills . | . . . . . . Critical Parts Destroyed . | . . . . . . Critical Strikes . | . . . . . . Melee Attacks . | . . . . . . Impact . | . . . . . . Slashing . | . . . . . . Piercing . | . . . . . . Sneak Attacks . | . . . . . . Combat Hostiles . | . . . . . . Follow-up Attacks . | . . . . . . Damage Inflicted 500 | 1 . . 45 . 454 Guns . | . . . . . . Cannons 147 | . . . . . 147 Explosions 304 | . . . . . 304 Melee . | . . . . . . Ramming 49 | 1 . . 45 . 3 Kinetic . | . . . . . . Thermal 451 | . . . . . 451 Explosive . | . . . . . . Electromagnetic . | . . . . . . Impact . | . . . . . . Slashing . | . . . . . . Piercing . | . . . . . . Highest Corruption . | . . . . . . Average Corruption . | . . . . . . Corruption Purged . | . . . . . . Corruption Blocked . | . . . . . . Overload Shots . | . . . . . . Overflow Damage 30 | . . . . . 30 Projectiles . | . . . . . . Explosions 30 | . . . . . 30 Melee . | . . . . . . Knockbacks . | . . . . . . Impact . | . . . . . . Kinetic . | . . . . . . Secondary . | . . . . . . Self-Inflicted Damage 23 | . . . 22 . 1 Shots . | . . . . . . Rammed 6 | 1 . . 4 . 1 Targets Rammed 6 | 1 . . 4 . 1 Kicked . | . . . . . . Crushed . | . . . . . . Highest Temperature 125 | . . . . . 125 Average Temperature 44 | . . . . . 44 Received Heat Transfer 1292 | . 12 . . . 1280 Siege Activations . | . . . . . . Martial Activations . | . . . . . . Shielding Activations . | . . . . . . Robots Disrupted . | . . . . . . Combat Hostiles . | . . . . . . Robots Corrupted . | . . . . . . Combat Hostiles . | . . . . . . Parts Fried . | . . . . . . Impact Corruptions . | . . . . . . Robots Melted . | . . . . . . Combat Hostiles . | . . . . . . Parts Melted . | . . . . . . Heat Transferred 460 | . . . . . 460 Parts Sabotaged . | . . . . . . Parts Stolen . | . . . . . . Parts Stripped . | . . . . . . Power Chain Reactions . | . . . . . . Alert | -11 -10 -9 -9 -9 -8 ------- Run | Yrd Mat Mat Min Exi Min Maximum Alert Level . | . . . . . . Low Security (%) 100 | 100 100 100 100 . 100 Level 1 . | . . . . . . Level 2 . | . . . . . . Level 3 . | . . . . . . Level 4 . | . . . . . . Level 5 . | . . . . . . High Security . | . . . . . . Max Security . | . . . . . . Peak Influence 90 | . . 8 30 . 90 Initial . | . . . . . . Average 14 | . . . 2 . 65 Influence Increases 190 | . . 8 30 . 152 Destroy 0b10 Robot/C 80 | . . . 20 . 60 Destroy 0b10 Robot/NC 5 | . . . . . 5 Destroy Leader 20 | . . . 10 . 10 Successful Hack 8 | . . 8 . . . Destroy Structure 77 | . . . . . 77 Influence Decreases 118 | . . 8 16 14 80 Entered New Map 14 | . . . . 14 . Time Decay 104 | . . 8 16 . 80 Squads Dispatched 2 | . 1 . 1 . . Investigation 1 | . 1 . . . . Extermination . | . . . . . . Reinforcement 1 | . . . 1 . . Assault . | . . . . . . Garrison . | . . . . . . Intercept . | . . . . . . Searches Triggered . | . . . . . . Construction Impeded 1 | . . . 1 . . Haulers Reinforced . | . . . . . . Active Scanning Responses . | . . . . . . Cargo Convoy Interrupts . | . . . . . . Stealth | -11 -10 -9 -9 -9 -8 --------- Run | Yrd Mat Mat Min Exi Min Distress Signals 2 | . . 1 1 . . Communications Jammed . | . . . . . . Distress Signals . | . . . . . . Times Spotted 16 | . 3 3 5 1 4 Peak Tracking Total 10 | . . 4 3 10 4 Tactical Retreats 2 | . . . 1 1 . Traps | -11 -10 -9 -9 -9 -8 ------- Run | Yrd Mat Mat Min Exi Min Traps Triggered . | . . . . . . Indirectly . | . . . . . . Trap Hack Attempts . | . . . . . . Triggered . | . . . . . . Disarmed . | . . . . . . Reprogrammed . | . . . . . . Reused . | . . . . . . Traps Extracted . | . . . . . . Installed . | . . . . . . Triggered . | . . . . . . Machines | -11 -10 -9 -9 -9 -8 ---------- Run | Yrd Mat Mat Min Exi Min Machines Disabled 1 | . . . . 1 . Max in Single Turn 1 | . . . . 1 . Machines Repaired . | . . . . . . Machines Dismantled . | . . . . . . Machines Sabotaged . | . . . . . . Overloaded Fab Kills . | . . . . . . Hacking | -11 -10 -9 -9 -9 -8 --------- Run | Yrd Mat Mat Min Exi Min Machines Accessed 4 | . 2 1 . 1 . Terminals 3 | . 2 1 . . . Fabricators . | . . . . . . Repair Stations . | . . . . . . Recycling Units . | . . . . . . Scanalyzers . | . . . . . . Garrison Access . | . . . . . . Total Hacks 12 | . 7 4 . 1 . Successful 2 | . . 1 . 1 . Failed 10 | . 7 3 . . . Catastrophic 4 | . 3 1 . . . Database Lockouts . | . . . . . . Manual 12 | . 7 4 . 1 . Terminals 11 | . 7 4 . . . Fabricators . | . . . . . . Repair Stations . | . . . . . . Recycling Units . | . . . . . . Scanalyzers . | . . . . . . Garrison Access . | . . . . . . Terminal Hacks 2 | . . 1 . 1 . Branch Access Points 1 | . . 1 . . . Proto ID Catalog 1 | . . . . 1 . Fabricator Hacks . | . . . . . . Repair Station Hacks . | . . . . . . Recycling Unit Hacks . | . . . . . . Scanalyzer . | . . . . . . Garrison Access Hacks . | . . . . . . Unauthorized Hacks . | . . . . . . Terminals . | . . . . . . Fabricators . | . . . . . . Repair Stations . | . . . . . . Recycling Units . | . . . . . . Scanalyzers . | . . . . . . Garrison Access . | . . . . . . Data Cores Recovered . | . . . . . . Used . | . . . . . . Hacking Detections 3 | . 2 1 . . . Full Trace Events 3 | . 2 1 . . . Feedback Events . | . . . . . . Feedback Blocked . | . . . . . . Robot Schematics Acquired . | . . . . . . Robots Built . | . . . . . . Authchips . | . . . . . . Time . | . . . . . . Total Robot Build Rating . | . . . . . . Part Schematics Acquired . | . . . . . . Parts Built . | . . . . . . Authchips . | . . . . . . Time . | . . . . . . Total Part Build Rating . | . . . . . . Part Studies Acquired . | . . . . . . Parts Repaired . | . . . . . . Time . | . . . . . . Parts Recycled . | . . . . . . Recycled Matter . | . . . . . . Retrieved Matter . | . . . . . . Retrieved Components . | . . . . . . Parts Scanalyzed . | . . . . . . Part Schematics Acquired . | . . . . . . Parts Damaged . | . . . . . . Bothacking | -11 -10 -9 -9 -9 -8 ------------ Run | Yrd Mat Mat Min Exi Min Used RIF Installer . | . . . . . . Robots Hacked . | . . . . . . Non-combat . | . . . . . . Combat . | . . . . . . Robot Hacks Applied . | . . . . . . Relay Couplers Released . | . . . . . . Fabnet Peak Effective % . | . . . . . . Robots Rewired . | . . . . . . Allies Hacked . | . . . . . . Hacks Repelled . | . . . . . . Allies | -11 -10 -9 -9 -9 -8 -------- Run | Yrd Mat Mat Min Exi Min Total Allies 2 | . . . 2 . . Largest Group 2 | . . . 2 . . Highest-Rated Group 41 | . . . 41 . . Highest-Rated Ally 31 | . . . 31 . . Total Orders . | . . . . . . Ally Attacks 7 | . . . 7 . . Total Damage 62 | . . . 62 . . Kills 1 | . . . 1 . . Allies Corrupted . | . . . . . . Allies Melted . | . . . . . . Intel | -11 -10 -9 -9 -9 -8 ------- Run | Yrd Mat Mat Min Exi Min Active Infowar (turns) . | . . . . . . Robot Analysis Total . | . . . . . . Derelict Logs Recovered 1 | . . . 1 . . Drone Launches . | . . . . . . Drone Recoveries . | . . . . . . Exploration | -11 -10 -9 -9 -9 -8 ------------- Run | Yrd Mat Mat Min Exi Min Turns Passed 929 | 10 42 73 527 113 164 Spaces Moved 832 | 17 83 146 209 215 162 Core 832 | 17 83 146 209 215 162 Treads . | . . . . . . Legs . | . . . . . . Wheels . | . . . . . . Hover . | . . . . . . Flight . | . . . . . . Fastest Speed 50 | 50 50 50 50 50 50 Average Speed 50 | 50 50 50 50 50 50 Slowest Speed 50 | 50 50 50 50 50 50 Overloaded Moves . | . . . . . . Propulsion Burnouts . | . . . . . . Robots Hopped . | . . . . . . Potential Cave-ins . | . . . . . . Cave-ins Triggered . | . . . . . . Exploration Rate (%) 29 | 3 19 20 43 62 28 Regions Visited 5 Branch Regions 3 Pre-discovered Areas 2 | . . . 2 . . Known Exits Taken 1 | . . 1 . . . Unknown Exits Taken 4 | 1 1 . 1 1 . Scrap Searched 2 | . . . 2 . . Spaces Dug . | . . . . . . Terrain Destroyed 128 | . . . . 3 125 Melee . | . . . . . . Projectile 3 | . . . . . 3 AOE 125 | . . . . 3 122 Terrain Rammed . | . . . . . . Walls Destroyed . | . . . . . . Machines Disabled . | . . . . . . Actions | -11 -10 -9 -9 -9 -8 --------- Run | Yrd Mat Mat Min Exi Min Total 1302 | 17 82 145 630 216 212 Wait 453 | . . . 415 . 38 Move 827 | 16 82 145 208 214 162 Hop . | . . . . . . Pick Up . | . . . . . . Fast Attach 1 | . . . . 1 . Attach . | . . . . . . Detach . | . . . . . . Swap . | . . . . . . Drop . | . . . . . . Fire 12 | . . . . 1 11 Melee . | . . . . . . Ram 6 | 1 . . 4 . 1 Kick . | . . . . . . Crush . | . . . . . . Escape Stasis . | . . . . . . Rewire . | . . . . . . Trap . | . . . . . . Miscellaneous 3 | . . . 3 . . Route ------- -11/Scrapyard -10/Materials -9/Materials (discovered 3 exits: [*Mat] / *Min x2) -9/Mines (discovered 2 exits: [*Mat] / *Exi) -9/Exiles (discovered 2 exits: [*Min x2]) -8/Mines History --------- Turn | Location | Event 3 | -11/Scrapyard | Discovered new exit (range 15) 11 | -11/Scrapyard | Entered Materials 50 | -10/Materials | Discovered new exit (range 5) 53 | -10/Materials | Entered another Materials area 55 | -9/Materials | Reached level 2 66 | -9/Materials | Identified exit to Mines 97 | -9/Materials | Discovered new exit (range 15) 126 | -9/Materials | Entered Mines 127 | -9/Mines | Assembled infested the area 132 | -9/Mines | Assisted by a Guerilla fighting off Assembled 305 | -9/Mines | Build established: Mutant 548 | -9/Mines | Learned location of Zion (-6) 566 | -9/Mines | Received a Rocket Launcher from a helpful Derelict 586 | -9/Mines | Discovered new exit (range 8) 598 | -9/Mines | Joined a pair of Derelicts in attacking an 0b10 outpost 629 | -9/Mines | Learned location of Storage (-8) 650 | -9/Mines | Deemed a non-threat by the Exiles lab entrance 651 | -9/Mines | Discovered new exit (range 5) 653 | -9/Mines | Entered Exiles 661 | -9/Exiles | Discovered new exit (range 15) 667 | -9/Exiles | Met 8R-AWN 674 | -9/Exiles | Met EX-HEX 688 | -9/Exiles | Met EX-BIN 694 | -9/Exiles | Aligned with FarCom system 694 | -9/Exiles | Given EX-Vault access code 708 | -9/Exiles | Opened EX-Vault 711 | -9/Exiles | Upgraded with Weapon slot (x1) 711 | -9/Exiles | Found YOLO Cannon 722 | -9/Exiles | Warned to stay clear of 0b10 Research branches 740 | -9/Exiles | Met EX-DEC 747 | -9/Exiles | Attacked by the Exiles 762 | -9/Exiles | Discovered new exit (range 10) 766 | -9/Exiles | Left Exiles lab with YOLO Cannon 766 | -9/Exiles | Entered Mines 768 | -8/Mines | Reached level 3 841 | -8/Mines | AD-0RF came to Exiles' defense 886 | -8/Mines | Core integrity fell below 50% 912 | -8/Mines | Core integrity fell below 20% 926 | -8/Mines | Destroyed AD-0RF 930 | -8/Mines | Self-destructed Last Messages --------------- 00769_ K-01 Serf collects debris. 00770_ S-10 Pest destroyed. 00770_ Destroyed Flight Unit. 00770_ S-10 Pest destroyed. 00772_ K-01 Serf cleans the Core Extractor. 00800_ K-01 Serf collects debris. 00833_ Slammed into K-01 Serf. 00836_ K-01 Serf collects debris. 00841_ AD-0RF: "I came as fast as I could... Wait, it was you!" 00848_ K-01 Serf collects debris. 00856_ Acquired 8 matter. 00860_ K-01 Serf collects debris. 00909_ U-05 Engineer lays Concrete. 00910_ U-05 Engineer builds a Wall. 00915_ Upgraded: Core Integrity (+300) 00915_ U-05 Engineer builds a Wall. 00919_ U-05 Engineer lays Concrete. 00920_ U-05 Engineer builds a Wall. 00926_ AD-0RF destroyed. 00927_ U-05 Engineer builds a Wall. Map ----- +----------------------------------------------------+ | ?????????????????????????????????????????????????? | | ?????????????????????????????????????????????????? | | ?????????????????????????????????????????????????? | | ?????????????????????????????????????????????????? | | ?????????????????????????????????????????????????? | | ?????????????????????????????????????????????????? | | ?????????????????????????????????????????????????? | | ?????????????????????????????????????????????????? | | ?????????????????????????????????????????????????? | | ?????????????????????????????????????????????????? | | ????????????????????????? ???????????????????????? | | ????????????????????????? ???????????????????????? | | ????????????????????????? ???????????????????????? | | ??????????????? ???????? ???????????????????????? | | ???????????????# ??????## ##?????????????????????? | | ???????????????# #?????#" "#?????????????????????? | | ???????????????# ##????" "?#????????????????????? | | ???????????????# ##???# # ?????????????????????? | | ???????????????# ##??# # ?????????????????????? | | ???????????????# #??# # ?????????????????????? | | ????????????????# #??# #??????????????????????? | | ??????###????????# #??# #??????????????????????? | | ?????## #######?## #### #??????????????????????? | | ?????# ### ""# #??????????????????????? | | ?????#"" ## "#u#??????????????????????? | | ?????#" " "#@#??????????????????????? | | ?????# #??????????????????????? | | ????## = % #??????????????????????? | | ##### * % ;;;;##??????????????????????? | | ;; ##???????????????????????? | | #####????????????????????????? | | #" ##????????????????????????????? | | ###### #????????????????????????????? | | """"#????## #############????????????????? | | "" ???????### ## #????????????????? | | ####?????????# #????????????????? | | #????????????### # #????????????????? | | #???############ # #????????????????? | | ##???# ## # #????????????????? | | #????# ## # #????????????????? | | #????# ## # """ """ #????????????????? | | ##????# """ """ ## # """ """ #????????????????? | | ##?????# """ """ ## # """ """ #????????????????? | | ##??????# """ """ # """ #????????????????? | | ????????# #### #????????????????? | | ????????###########??##########?#????????????????? | | ?????????????????????????????????????????????????? | | ?????????????????????????????????????????????????? | | ?????????????????????????????????????????????????? | | ?????????????????????????????????????????????????? | +----------------------------------------------------+ Best States ------------- Heat Dissipation 37 Energy Generation 10 Energy Capacity 100 Matter Stores 300 Matter Capacity 300 Sight Range 16 Terrain Scan Density 10 Evasion (%) 50 Item Schematics ----------------- None Robot Schematics ------------------ None Fabricated ------------ Nothing Repaired ---------- Nothing Studied --------- None Alien Tech Used ----------------- None Achievements -------------- None Challenges ------------ None RPGLIKE | -11 -10 -9 -9 -9 -8 --------- Run | Yrd Mat Mat Min Exi Min Levels Raised 2 | . . 1 . . 1 XP Earned 6490 | 3000 100 1540 650 350 850 XP Spent 4620 | . . . . 4320 300 Upgrades 14 | . . . . 8 6 Weapon Slot 1 | . . . . 1 . Core Integrity 6 | . . . . . 6 Heat Dissipation 2 | . . . . 2 . Energy Generation 1 | . . . . 1 . Mass Support 4 | . . . . 4 . Protomatter Created 35 | . . . 35 . . Integrity Restored 65 | . . . 65 . . Core 65 | . . . 65 . . Protomatter Decayed 9 | . . . 9 . . Game ------ Seed DecoderFactoryArticulator Manual? 0 Play Time 00:07:55 Cumulative 663.0 hours Start 2026.07.15 @ 06:19:49 End 2026.07.15 @ 06:31:02 Sessions 1 Manual Loads 0 Difficulty Rogue Special Mode Winter2019/RPGLIKE Game No. 300 Rogue 146 Adventurer 154 Explorer 0 Win Type - Total 22 Types 4/5/4/3/2/1/0/1/1/1 Lore% 95 Gallery% 88 Achievement% 68 Wizard Run 0 Options --------- Layout 0 ASCII 0 Keyboard 0 Movement Numpad Keybinds 0 Fullscreen 2 Font 18/SmallcapsGlow Map View 76x50 Zoom Use 0% Tactical HUD 1 Map Filters NONE Filters NONE Steam 1 RUN: 28aee89b-df11-4e06-bf40-36e1bab168f7